bitfinex/quotes_BTCUSD_20251221
["timestamp","ask_amount","ask_price","bid_price","bid_amount"]
[1766314330378,0.54464,88785.0,88776.0,0.03384092]
[1766314330580,0.54464,88785.0,88779.0,0.00564]
[1766314331155,0.54464,88785.0,88776.0,0.03384092]
[1766314331349,0.37385,88785.0,88779.0,0.00564]
[1766314331495,0.54464,88785.0,88779.0,0.00564]
[1766314332013,0.17079,88784.0,88779.0,0.00564]
[1766314332412,0.17079,88784.0,88776.0,0.03384092]
[1766314332612,0.17079,88784.0,88779.0,0.00564]
[1766314332829,0.37385,88785.0,88779.0,0.00564]
[1766314333946,0.17079,88786.0,88779.0,0.00564]
[1766314335775,0.18205303,88786.0,88779.0,0.00564]
[1766314335979,0.38511303,88786.0,88779.0,0.00564]
[1766314336226,0.17079,88785.0,88776.0,0.03384092]
[1766314336417,0.17079,88785.0,88779.0,0.00564]
[1766314340351,0.01126291,88787.0,88779.0,0.00564]
[1766314341832,0.01126278,88788.0,88779.0,0.00564]
[1766314342166,0.01126291,88787.0,88779.0,0.00564]
[1766314343189,0.01126367,88781.0,88771.0,0.08339103]
[1766314343381,0.01126379,88780.0,88776.0,0.00564]
[1766314343951,0.18205379,88780.0,88776.0,0.00564]
[1766314344160,0.01126405,88778.0,88771.0,0.04955011]
[1766314344412,0.01126405,88778.0,88772.0,0.00564]
[1766314344613,0.01126405,88778.0,88765.0,0.03384257]
[1766314344614,0.16382,88774.0,88765.0,0.03384257]
[1766314344758,0.01126405,88778.0,88756.0,0.04955011]
[1766314344759,0.16382,88769.0,88756.0,0.04955011]
[1766314345101,0.163271,88769.0,88757.0,0.00564]
[1766314345505,0.34565,88770.0,88757.0,0.00564]
[1766314345712,0.34565,88770.0,88757.0,0.01690671]
[1766314345948,0.34565,88770.0,88757.0,0.00564]
[1766314346571,0.34565,88770.0,88757.0,0.01690671]
[1766314349543,0.01126481,88772.0,88757.0,0.00564]
[1766314349735,0.01126506,88770.0,88757.0,0.00564]
[1766314349965,0.01126519,88769.0,88757.0,0.00564]
[1766314350175,0.17508506,88770.0,88757.0,0.00564]
[1766314350380,0.16382,88770.0,88757.0,0.00564]
[1766314350657,0.16382,88770.0,88758.0,0.00564]
[1766314351451,0.01126481,88772.0,88758.0,0.00564]
[1766314351857,0.01126519,88769.0,88756.0,0.04955011]
[1766314352016,0.01126519,88769.0,88759.0,0.00564]
[1766314352458,0.01126519,88769.0,88760.0,0.00564]
[1766314352689,0.01126506,88770.0,88760.0,0.00564]
[1766314353225,0.06759013,88771.0,88760.0,0.00564]
[1766314353226,0.17508494,88771.0,88760.0,0.00564]
[1766314354151,0.16382,88771.0,88760.0,0.00564]
[1766314356472,0.17508494,88771.0,88760.0,0.00564]
[1766314356681,0.01126519,88769.0,88760.0,0.00564]
[1766314356856,0.01126519,88769.0,88749.0,0.05633812]
[1766314356857,0.000549,88760.0,88745.0,0.04508]
[1766314357056,0.000549,88760.0,88756.0,0.04955011]
[1766314357057,0.158039,88760.0,88756.0,0.04955011]
[1766314357258,0.15749,88760.0,88756.0,0.04955011]
[1766314357524,0.50794,88764.0,88756.0,0.04955011]
[1766314358008,0.50794,88764.0,88756.0,0.04990893]
[1766314358426,0.51920582,88764.0,88759.0,0.0001]
[1766314358611,0.50794,88764.0,88759.0,0.0001]
[1766314358795,0.51920582,88764.0,88759.0,0.0001]
[1766314359137,0.50794,88764.0,88759.0,0.0001]
[1766314359314,0.15749,88763.0,88759.0,0.0001]
[1766314362999,0.15749,88763.0,88756.0,0.00035882]
[1766314363217,0.16875595,88763.0,88756.0,0.00035882]
[1766314363899,0.15749,88763.0,88756.0,0.00035882]
[1766314365337,0.01126633,88760.0,88756.0,0.00035882]
[1766314365938,0.01126608,88762.0,88756.0,0.00035882]
[1766314367058,0.15749,88763.0,88756.0,0.00035882]
[1766314368737,0.01126608,88762.0,88756.0,0.00035882]
[1766314369155,0.0112662,88761.0,88756.0,0.00035882]
[1766314371275,0.15749,88762.0,88756.0,0.00035882]
[1766314371447,0.16875608,88762.0,88756.0,0.00035882]
[1766314371646,0.01126633,88760.0,88756.0,0.00035882]
[1766314372037,0.0112662,88761.0,88756.0,0.00035882]
[1766314372245,0.16875608,88762.0,88756.0,8.2e-07]
[1766314372964,0.15749,88762.0,88756.0,8.2e-07]
[1766314373789,0.15749,88762.0,88748.0,0.00257082]
[1766314373989,0.15749,88762.0,88748.0,0.00263081]
[1766314376786,0.16875608,88762.0,88748.0,0.00263081]
[1766314377082,0.0112662,88761.0,88748.0,0.00263081]
[1766314377280,0.16875608,88762.0,88748.0,0.00263081]
[1766314378310,0.0112662,88761.0,88748.0,0.00263081]
[1766314378535,0.16875608,88762.0,88748.0,0.00263081]
[1766314378768,0.15749,88762.0,88748.0,0.00569999]
[1766314379336,0.16875608,88762.0,88748.0,0.00569999]
[1766314379866,0.01126633,88760.0,88748.0,0.00569999]
[1766314380074,0.00013101,88748.0,88741.0,0.04955011]
[1766314380259,0.00013101,88748.0,88741.0,0.04965775]
[1766314380631,0.50794,88751.0,88741.0,0.04965775]
[1766314380834,0.15749,88750.0,88741.0,0.04965775]
[1766314381036,0.35045,88751.0,88741.0,0.04965775]
[1766314381439,0.350092,88751.0,88741.0,0.04965775]
[1766314383410,0.350092,88751.0,88733.0,0.05634831]
[1766314383411,0.350092,88751.0,88731.0,0.04955011]
[1766314383412,0.31318376,88751.0,88731.0,0.04955011]
[1766314383616,0.15749,88740.0,88732.0,0.03385383]
[1766314383829,0.15743,88740.0,88731.0,0.04955011]
[1766314384056,0.35045,88741.0,88731.0,0.04955011]
[1766314385659,0.00564,88743.0,88731.0,0.04955011]
[1766314388323,0.3762176,88750.0,88731.0,0.04955011]
[1766314388324,4.039e-05,88751.0,88739.0,0.011269]
[1766314388451,0.0001,88779.0,88750.0,0.04955011]
[1766314388452,0.00564,88760.0,88750.0,0.04955011]
[1766314388654,0.10144966,88763.0,88750.0,0.04961071]
[1766314388655,0.00564,88759.0,88750.0,0.04961071]
[1766314391005,0.0004884,88750.0,88743.0,0.03385318]
[1766314391165,0.1631,88757.0,88749.0,0.04955011]
[1766314392413,0.1631,88757.0,88749.0,0.04906211]
[1766314394161,0.17436671,88757.0,88749.0,0.04906211]
[1766314394589,0.1631,88757.0,88749.0,0.04906211]
[1766314396656,0.01126684,88756.0,88749.0,0.04906211]
[1766314396855,0.1631,88753.0,88742.0,0.03385318]
[1766314397081,0.17436798,88747.0,88742.0,4.039e-05]
[1766314397655,0.1631,88747.0,88742.0,4.039e-05]
[1766314399100,0.36495,88751.0,88745.0,0.04955011]
[1766314399497,0.52805,88751.0,88745.0,0.04955011]
[1766314399697,0.53931747,88751.0,88745.0,0.04955011]
[1766314399876,0.52805,88751.0,88745.0,0.04955011]
[1766314400234,0.1631,88750.0,88745.0,0.04955011]
[1766314404267,0.1743676,88750.0,88745.0,0.04955011]
[1766314404801,0.1631,88750.0,88745.0,0.04955011]
[1766314408663,0.1743676,88750.0,88745.0,0.04955011]
[1766314408845,0.1631,88750.0,88745.0,0.04955011]
[1766314410566,0.01126785,88748.0,88745.0,0.04955011]
[1766314411147,0.01126773,88749.0,88745.0,0.04955011]
[1766314413263,0.17894773,88749.0,88745.0,0.04955011]
[1766314415046,0.3829162,88761.0,88749.0,0.000549]
[1766314415249,0.00564,88755.0,88749.0,0.000549]
[1766314415503,0.37165,88767.0,88747.0,0.00564]
[1766314415504,0.00564,88759.0,88747.0,0.00564]
[1766314415658,0.16109,88766.0,88747.0,0.00564]
[1766314415659,0.00564,88761.0,88750.0,0.32452383]
[1766314415999,0.00564,88761.0,88750.0,0.31325623]
[1766314416199,1e-06,88761.0,88751.0,0.01352097]
[1766314416473,1e-06,88761.0,88752.0,0.00564]
[1766314416818,0.37165,88767.0,88759.0,0.04955011]
[1766314417028,0.37165,88774.0,88759.0,0.05519011]
[1766314417217,0.01126494,88771.0,88760.0,0.31325623]
[1766314417442,0.37165,88774.0,88760.0,0.31325623]
[1766314418513,0.0001,88771.0,88760.0,0.31325623]
[1766314419081,0.0001,88771.0,88759.0,0.05519011]
[1766314420128,0.0001,88771.0,88759.0,0.06645657]
[1766314420330,0.0001,88771.0,88759.0,0.05519011]
[1766314421534,0.0001,88771.0,88759.0,0.06645657]
[1766314421787,0.0001,88771.0,88760.0,0.31325623]
[1766314422024,0.0001,88771.0,88760.0,0.31311721]
[1766314424627,0.0001,88771.0,88759.0,0.05519011]
[1766314424844,0.0001,88771.0,88760.0,0.31311721]
[1766314425054,0.0001,88771.0,88759.0,0.05519011]
[1766314425911,0.01136494,88771.0,88759.0,0.05519011]
[1766314426116,0.0001,88771.0,88759.0,0.05519011]
[1766314428665,0.06961841,88770.0,88759.0,0.05519011]
[1766314429248,0.16109,88769.0,88759.0,0.05519011]
[1766314429850,0.17235519,88769.0,88759.0,0.05519011]
[1766314430768,0.16109,88769.0,88759.0,0.05519011]
[1766314433069,0.17235519,88769.0,88759.0,0.05519011]
[1766314433729,0.16109,88769.0,88759.0,0.05519011]
[1766314434492,0.17235519,88769.0,88759.0,0.04955011]
[1766314434701,0.000549,88759.0,88754.0,0.03384757]
[1766314434903,0.000549,88759.0,88755.0,0.00564]
[1766314435109,0.16109,88767.0,88755.0,0.00564]
[1766314435314,0.16109,88767.0,88760.0,0.04955011]
[1766314435520,0.16109,88767.0,88760.0,0.05519011]
[1766314435746,0.17235544,88767.0,88760.0,0.00564]
[1766314435946,0.17235544,88767.0,88760.0,0.005091]
[1766314436108,0.17235544,88767.0,88760.0,0.00564]
[1766314436293,0.01126544,88767.0,88760.0,0.00564]
[1766314437401,0.01126544,88767.0,88759.0,0.00564]
[1766314437832,0.00819544,88767.0,88753.0,0.03219926]
[1766314438058,0.01126532,88768.0,88754.0,0.00564]
[1766314439744,0.01126519,88769.0,88754.0,0.00564]
[1766314440565,0.01126532,88768.0,88754.0,0.00564]
[1766314441775,0.01126532,88768.0,88753.0,0.03219926]
[1766314441776,0.16109,88766.0,88753.0,0.03219926]
[1766314441974,0.16109,88763.0,88754.0,0.00564]
[1766314442386,0.37165,88764.0,88754.0,0.00564]
[1766314444386,0.37165,88764.0,88755.0,0.00564]
[1766314444606,0.37165,88764.0,88756.0,0.00564]
[1766314444849,0.01126544,88767.0,88756.0,0.00564]
[1766314445056,0.17235532,88768.0,88756.0,0.00564]
[1766314445705,0.01126544,88767.0,88756.0,0.00564]
[1766314446084,0.16785544,88767.0,88756.0,0.00564]
[1766314446296,0.01126557,88766.0,88756.0,0.00564]
[1766314447989,0.16735544,88767.0,88756.0,0.00564]
[1766314448375,0.16735544,88767.0,88757.0,0.0001]
[1766314448611,0.16735544,88767.0,88756.0,0.00564]
[1766314448612,0.15659,88762.0,88756.0,0.00564]
[1766314448956,0.15659,88762.0,88751.0,0.0002]
[1766314449164,0.01126633,88760.0,88752.0,0.00564]
[1766314449365,0.51651,88759.0,88752.0,0.00564]
[1766314449637,0.15659,88757.0,88751.0,0.0002]
[1766314454087,0.156491,88757.0,88751.0,0.0002]
[1766314455076,0.35992,88757.0,88751.0,0.0002]
[1766314455378,0.01126697,88755.0,88751.0,0.0002]
[1766314455574,0.01126697,88755.0,88748.0,0.00564]
[1766314455575,0.0002,88751.0,88748.0,0.00564]
[1766314456000,0.37118709,88754.0,88748.0,0.00564]
[1766314456198,0.52777709,88754.0,88748.0,0.00564]
[1766314458223,0.01126722,88753.0,88748.0,0.00564]
[1766314458527,0.15873,88753.0,88745.0,0.00564]
[1766314459111,0.35992,88754.0,88745.0,0.01690824]
[1766314459314,0.00564,88764.0,88753.0,0.00055]
[1766314459566,0.00564,88764.0,88746.0,0.0676086]
[1766314459567,0.00564,88764.0,88748.0,0.01126785]
[1766314459727,0.00564,88763.0,88748.0,0.01126785]
[1766314459930,0.0112657,88765.0,88747.0,0.01126798]
[1766314460127,0.07817343,88764.0,88748.0,0.01126785]
[1766314460750,0.08943925,88764.0,88748.0,0.01126785]
[1766314460989,0.01690582,88764.0,88748.0,0.01126785]
[1766314461121,0.01690582,88764.0,88747.0,0.01126798]
[1766314461662,0.01126582,88764.0,88747.0,0.01126798]
[1766314461813,0.01690582,88764.0,88747.0,0.01126798]
[1766314462216,0.0112657,88765.0,88748.0,0.01126785]
[1766314462414,0.01690582,88764.0,88748.0,0.01126785]
[1766314462659,0.0112657,88765.0,88748.0,0.01126785]
[1766314462858,0.00564,88764.0,88749.0,0.01126773]
[1766314463113,0.15873,88760.0,88745.0,0.00564]
[1766314465276,0.16999633,88760.0,88745.0,0.00564]
[1766314465480,0.15873,88760.0,88745.0,0.00564]
[1766314466415,0.16999633,88760.0,88745.0,0.00564]
[1766314467016,0.01126646,88759.0,88745.0,0.00564]
[1766314467219,0.01126659,88758.0,88745.0,0.00564]
[1766314467989,0.01126684,88756.0,88745.0,0.00564]
[1766314468263,0.15873,88757.0,88745.0,0.00564]
[1766314471482,0.16999671,88757.0,88745.0,0.00564]
[1766314471693,0.15294,88753.0,88746.0,0.00564]
[1766314472508,0.3667,88754.0,88746.0,0.00564]
[1766314478628,0.3667,88754.0,88747.0,0.00564]
[1766314479052,0.15294,88757.0,88747.0,0.00564]
[1766314482642,0.01690582,88764.0,88747.0,0.01690798]
[1766314482846,0.02424555,88772.0,88757.0,0.00055]
[1766314483021,0.00564,88772.0,88759.0,0.01126646]
[1766314483167,0.00564,88772.0,88758.0,0.01690659]
[1766314483595,0.00564,88772.0,88758.0,0.00564]
[1766314483798,0.00564,88772.0,88759.0,0.01351975]
[1766314484173,0.16421455,88774.0,88759.0,0.01351975]
[1766314484506,0.15295,88774.0,88761.0,0.0112662]
[1766314484721,0.15295,88774.0,88759.0,0.01126646]
[1766314484918,0.15295,88774.0,88760.0,0.01126633]
[1766314485115,0.15295,88774.0,88759.0,0.01126646]
[1766314485281,0.15295,88774.0,88760.0,0.01126633]
[1766314485487,0.15295,88774.0,88759.0,0.01126646]
[1766314485689,0.15295,88774.0,88760.0,0.01126633]
[1766314486238,0.15295,88774.0,88761.0,0.0112662]
[1766314486442,0.35017,88776.0,88761.0,0.0112662]
[1766314486680,0.35017,88776.0,88762.0,0.01126608]
[1766314486884,0.35017,88776.0,88761.0,0.0112662]
[1766314487042,0.35017,88776.0,88760.0,0.01126633]
[1766314487634,0.3614343,88776.0,88759.0,0.01126646]
[1766314487821,0.3614343,88776.0,88760.0,0.01126633]
[1766314488248,0.01126443,88775.0,88758.0,0.00564]
[1766314488422,0.01146494,88771.0,88758.0,0.00564]
[1766314488618,0.15315,88771.0,88758.0,0.00564]
[1766314492548,0.15315,88771.0,88746.0,0.01126811]
[1766314492549,0.000549,88758.0,88746.0,0.01126811]
[1766314492746,0.000549,88758.0,88747.0,0.00564]
[1766314492948,0.35579608,88762.0,88747.0,0.00564]
[1766314493076,0.34453,88762.0,88747.0,0.01690798]
[1766314493449,0.34453,88762.0,88746.0,0.01126811]
[1766314493724,0.50874608,88762.0,88745.0,0.01126824]
[1766314494028,0.50874608,88762.0,88746.0,0.00564]
[1766314494177,0.50874608,88762.0,88746.0,0.01126811]
[1766314494375,0.50874608,88762.0,88747.0,0.00564]
[1766314494590,0.0112662,88761.0,88748.0,0.00564]
[1766314495187,0.01126633,88760.0,88744.0,0.02253672]
[1766314495532,0.0112662,88761.0,88745.0,0.00564]
[1766314495733,0.0112662,88761.0,88745.0,0.01690824]
[1766314496079,0.0112662,88761.0,88746.0,0.00564]
[1766314496430,0.01126633,88760.0,88746.0,0.00564]
[1766314496810,0.01126646,88759.0,88746.0,0.00564]
[1766314497019,0.01126633,88760.0,88746.0,0.00564]
[1766314497622,0.16421633,88760.0,88746.0,0.00564]
[1766314498707,0.15295,88758.0,88746.0,0.00564]
[1766314499237,0.34453,88759.0,88746.0,0.00564]
[1766314499450,0.34453,88759.0,88744.0,0.01126836]
[1766314499598,0.34453,88759.0,88747.0,0.00564]
[1766314500398,0.15295,88758.0,88747.0,0.00564]
[1766314500613,0.000549,88747.0,88742.0,4.039e-05]
[1766314500858,0.000549,88747.0,88743.0,0.00564]
[1766314501054,0.01126747,88751.0,88743.0,0.00564]
[1766314501259,0.01126735,88752.0,88743.0,0.00564]
[1766314501829,0.01126722,88753.0,88743.0,0.00564]
[1766314502031,0.01126684,88756.0,88743.0,0.00564]
[1766314502457,0.01126671,88757.0,88743.0,0.00564]
[1766314502665,0.01690608,88762.0,88744.0,0.01126836]
[1766314503008,0.06759425,88765.0,88746.0,0.06081822]
[1766314503225,0.0112657,88765.0,88749.0,0.01126773]
[1766314503360,0.0112657,88765.0,88750.0,0.00564]
[1766314503785,0.15295,88770.0,88756.0,0.01126684]
[1766314504038,0.0002,88771.0,88765.0,0.00055]
[1766314504168,0.0002,88771.0,88759.0,0.01690646]
[1766314504370,0.0002,88771.0,88759.0,0.00564]
[1766314506252,0.0002,88771.0,88760.0,0.0135196]
[1766314506984,0.0002,88771.0,88760.0,0.02478593]
[1766314507187,0.0002,88771.0,88759.0,0.01690646]
[1766314508505,0.0002,88771.0,88760.0,0.01126633]
[1766314509319,0.0002,88771.0,88759.0,0.01690646]
[1766314511397,0.00564,88775.0,88761.0,0.0112662]
[1766314511798,0.00564,88775.0,88760.0,0.01126633]
[1766314512427,0.01690443,88775.0,88759.0,0.01690646]
[1766314512629,0.01690443,88775.0,88759.0,0.00564]
[1766314512831,0.00564,88775.0,88760.0,0.01126633]
[1766314514087,0.0001,88777.0,88760.0,0.01126633]
[1766314514286,0.0001,88777.0,88760.0,0.38075617]
[1766314514450,0.0001,88777.0,88762.0,0.01126608]
[1766314515892,0.01136417,88777.0,88761.0,0.0112662]
[1766314517251,0.1426,88775.0,88760.0,0.31310059]
[1766314517455,0.1426,88775.0,88760.0,0.32436692]
[1766314517654,0.15386443,88775.0,88760.0,0.31310059]
[1766314517855,0.36945443,88775.0,88760.0,0.31310059]
[1766314518096,0.1426,88774.0,88760.0,0.31310059]
[1766314518322,0.15386455,88774.0,88760.0,0.31310059]
[1766314519270,0.15386455,88774.0,88759.0,0.00564]
[1766314519867,0.1426,88774.0,88759.0,0.01690646]
[1766314520084,0.1426,88774.0,88759.0,0.00564]
[1766314520289,0.36945443,88775.0,88759.0,0.00564]
[1766314520290,0.35819,88773.0,88759.0,0.00564]
[1766314520491,0.1426,88772.0,88759.0,0.00564]
[1766314521049,0.06758606,88776.0,88754.0,0.0225338]
[1766314521050,0.01126532,88768.0,88754.0,0.01126671]
[1766314521195,0.000549,88759.0,88755.0,0.00564]
[1766314521392,0.1426,88763.0,88756.0,0.00564]
[1766314521596,0.1426,88763.0,88757.0,0.00564]
[1766314523546,0.1426,88763.0,88758.0,0.00564]
[1766314523755,0.1426,88763.0,88759.0,0.00564]
[1766314524267,0.1426,88763.0,88760.0,0.00564]
[1766314525057,0.3694557,88765.0,88760.0,0.00564]
[1766314525480,0.15386582,88764.0,88760.0,0.005091]
[1766314525845,0.1426,88764.0,88760.0,0.005091]
[1766314526086,0.1426,88764.0,88759.0,0.00564]
[1766314527997,0.01126595,88763.0,88759.0,0.00564]
[1766314528329,0.15386582,88764.0,88759.0,0.00564]
[1766314528717,0.1426,88764.0,88759.0,0.00564]
[1766314529128,0.15386582,88764.0,88759.0,0.00564]
[1766314530093,0.15386582,88764.0,88748.0,0.06081986]
[1766314530094,0.01126595,88763.0,88748.0,0.06081986]
[1766314530301,0.01126595,88763.0,88742.0,0.06765154]
[1766314530302,0.1426,88756.0,88749.0,0.00564]
[1766314530524,0.1426,88756.0,88750.0,0.00564]
[1766314530721,0.15386684,88756.0,88750.0,0.00564]
[1766314530923,0.15386684,88756.0,88749.0,0.00564]
[1766314530924,0.13383,88753.0,88749.0,0.00564]
[1766314531142,0.13383,88753.0,88748.0,0.00564]
[1766314532215,0.36177,88754.0,88748.0,0.00564]
[1766314532421,0.13383,88757.0,88748.0,0.00564]
[1766314532622,0.50686671,88757.0,88748.0,0.00564]
[1766314533545,0.01126684,88756.0,88748.0,0.00564]
[1766314533742,0.14509684,88756.0,88748.0,0.00564]
[1766314534345,0.13383,88756.0,88748.0,0.00564]
[1766314534672,0.14509684,88756.0,88748.0,0.00564]
[1766314534831,0.20143169,88756.0,88748.0,0.00564]
[1766314535064,0.01126697,88755.0,88748.0,0.00564]
[1766314535304,0.15150697,88755.0,88748.0,0.00564]
[1766314535707,0.14024,88758.0,88742.0,4.039e-05]
[1766314536040,0.14024,88748.0,88742.0,0.00568039]
[1766314536248,0.32945,88744.0,88742.0,3.9e-07]
[1766314536455,0.46969,88743.0,88742.0,3.9e-07]
[1766314537525,0.469141,88743.0,88742.0,3.9e-07]
[1766314541550,0.01126824,88745.0,88736.0,0.00564]
[1766314541747,0.01136929,88745.0,88728.0,0.06762232]
[1766314541949,0.46969,88744.0,88729.0,0.00564]
[1766314542154,0.01136929,88745.0,88730.0,0.18028011]
[1766314542468,0.00010105,88745.0,88730.0,0.04737025]
[1766314542769,0.14024,88743.0,88730.0,0.04737025]
[1766314542944,0.32945,88740.0,88730.0,0.04737025]
[1766314543115,0.14024,88737.0,88730.0,0.03304011]
[1766314543316,0.3289,88736.0,88730.0,0.01691014]
[1766314543552,0.14024,88735.0,88730.0,0.01691014]
[1766314544676,0.14024,88735.0,88730.0,0.00564]
[1766314545265,0.14024,88733.0,88730.0,0.00564]
[1766314545467,0.32945,88732.0,88730.0,0.00564]
[1766314545706,0.14024,88731.0,88730.0,0.00564]
[1766314547071,0.46969,88731.0,88730.0,0.00564]
[1766314549230,0.46969,88731.0,88724.0,0.19410706]
[1766314549432,0.32945,88742.0,88728.0,0.05635146]
[1766314549642,0.32945,88738.0,88729.0,0.00564]
[1766314549843,0.32945,88734.0,88729.0,0.00564]
[1766314550046,0.32945,88732.0,88729.0,0.00564]
[1766314550244,0.37396,88730.0,88729.0,0.01691027]
[1766314550642,0.37396,88730.0,88729.0,0.07326163]
[1766314550866,0.32945,88753.0,88749.0,0.31306895]
[1766314551091,0.32945,88751.0,88749.0,0.31196995]
[1766314551242,0.32945,88751.0,88749.0,0.27283634]
[1766314551857,0.32945,88751.0,88730.0,0.31318011]
[1766314551858,0.05661366,88751.0,88740.0,0.31318011]
[1766314552055,0.05606466,88751.0,88740.0,0.31318011]
[1766314552308,0.05606466,88751.0,88740.0,0.00564]
[1766314552662,0.05606466,88751.0,88741.0,0.00564]
[1766314553629,0.05606466,88751.0,88729.0,0.01127027]
[1766314553630,0.000549,88741.0,88729.0,0.01127027]
[1766314553837,0.000549,88741.0,88730.0,0.00564]
[1766314554047,0.01126785,88748.0,88731.0,0.00564]
[1766314554244,0.01126811,88746.0,88732.0,0.00564]
[1766314554468,0.04512011,88748.0,88733.0,1e-08]
[1766314554639,0.01127039,88728.0,88724.0,0.02812047]
[1766314554830,0.01127039,88728.0,88725.0,0.00564]
[1766314554831,0.0003262,88728.0,88725.0,0.00564]
[1766314555233,0.0003262,88728.0,88726.0,0.00564]
[1766314555781,0.0003262,88728.0,88727.0,0.00564]
[1766314558216,0.03385226,88737.0,88727.0,0.01691052]
[1766314558417,0.00564,88746.0,88727.0,0.01691052]
[1766314558615,0.00564,88746.0,88728.0,0.00564]
[1766314559001,0.31318011,88738.0,88728.0,0.00564]
[1766314559487,0.31318011,88731.0,88727.0,1e-08]
[1766314559613,0.31318011,88737.0,88717.0,0.04512]
[1766314559805,0.31318011,88730.0,88720.0,3.429513]
[1766314560005,0.31318011,88730.0,88720.0,3.068]
[1766314560204,0.31318011,88730.0,88721.0,0.00564]
[1766314560445,0.31318011,88730.0,88722.0,3.1824]
[1766314560667,0.31318011,88730.0,88722.0,0.0563558]
[1766314560832,0.31318011,88730.0,88721.0,0.06199593]
[1766314561294,0.31318011,88730.0,88721.0,0.07326721]
[1766314561603,0.03385226,88738.0,88722.0,1.72836983]
[1766314561604,0.3133745,88731.0,88722.0,1.72836983]
[1766314561780,0.3133745,88731.0,88722.0,0.0563558]
[1766314561950,0.3133745,88731.0,88726.0,0.01127065]
[1766314562740,0.3133745,88736.0,88721.0,0.00564]
[1766314562962,0.3133745,88731.0,88722.0,0.01127116]
[1766314563316,0.3133745,88731.0,88723.0,0.01127103]
[1766314563452,4.5e-06,88731.0,88726.0,0.13896]
[1766314564059,0.3133745,88736.0,88726.0,0.35597]
[1766314564257,0.00564,88739.0,88726.0,0.49493]
[1766314564460,0.00564,88739.0,88727.0,0.13896]
[1766314564655,0.3133745,88737.0,88725.0,0.01127078]
[1766314564870,0.0873,88736.0,88726.0,1e-08]
[1766314565069,0.3133745,88736.0,88726.0,1e-08]
[1766314565927,0.0169109,88738.0,88726.0,1e-08]
[1766314566120,0.3133745,88736.0,88726.0,1e-08]
[1766314566485,0.3133745,88736.0,88726.0,0.01127066]
[1766314566890,0.3133745,88736.0,88724.0,0.07326534]
[1766314566891,0.3133745,88736.0,88722.0,1e-08]
[1766314567116,0.3133745,88732.0,88722.0,1e-08]
[1766314567327,0.3133745,88732.0,88719.0,1.672015]
[1766314567328,0.3133745,88732.0,88721.0,1.300901]
[1766314567501,0.3133745,88732.0,88721.0,0.00564]
[1766314567717,0.3133745,88731.0,88721.0,0.00564]
[1766314567921,0.05077621,88721.0,88720.0,0.04955011]
[1766314568146,0.3133745,88731.0,88720.0,0.05519011]
[1766314568490,0.3133745,88730.0,88720.0,0.04955011]
[1766314568820,0.3190145,88730.0,88721.0,0.83849]
[1766314569022,0.3190145,88730.0,88728.0,0.83849]
[1766314569023,0.00564,88730.0,88728.0,0.83849]
[1766314569219,0.00564,88730.0,88728.0,0.3759]
[1766314571245,0.00564,88730.0,88729.0,0.83849]
[1766314572842,0.00564,88730.0,88729.0,0.46259]
[1766314574822,0.00564,88730.0,88711.0,0.00564]
[1766314575024,0.3133745,88721.0,88714.0,0.04955011]
[1766314575230,0.1440841,88724.0,88721.0,0.000549]
[1766314575462,0.0057476,88730.0,88714.0,0.04955011]
[1766314576866,0.0057476,88730.0,88716.0,0.46259]
[1766314577068,0.3133745,88726.0,88717.0,0.46259]
[1766314577373,0.31347533,88727.0,88717.0,0.46259]
[1766314578891,0.31347533,88727.0,88714.0,0.04955011]
[1766314579099,0.31347533,88727.0,88715.0,0.3759]
[1766314579415,0.31347533,88727.0,88716.0,0.46259]
[1766314579616,0.31347533,88727.0,88717.0,0.46259]
[1766314580176,0.0057476,88730.0,88717.0,1.08954066]
[1766314580418,0.0057476,88730.0,88717.0,0.62695066]
[1766314580419,0.36016,88727.0,88717.0,0.62695066]
[1766314581218,0.36016,88727.0,88717.0,0.61665526]
[1766314581417,0.82832,88726.0,88717.0,0.61665526]
[1766314581623,0.36016,88725.0,88717.0,0.61665526]
[1766314581831,0.00564,88724.0,88717.0,0.61665526]
[1766314582719,0.83396,88724.0,88714.0,0.62695066]
[1766314582941,0.83396,88724.0,88704.0,0.0002]
[1766314582942,0.46816,88718.0,88704.0,0.0002]
[1766314583155,0.06428314,88717.0,88704.0,0.0002]
[1766314583368,0.82832,88716.0,88708.0,0.31347533]
[1766314587218,0.82832,88716.0,88699.0,0.3759]
[1766314587219,0.82832,88716.0,88690.0,0.0002]
[1766314587220,0.06763312,88714.0,88690.0,0.0002]
[1766314587386,0.05076,88717.0,88690.0,0.0002]
[1766314587388,0.54617,88705.0,88690.0,0.0002]
[1766314587560,0.55181,88704.0,88690.0,0.0002]
[1766314587769,0.55181,88704.0,88695.0,0.31347533]
[1766314588004,0.58568214,88704.0,88695.0,0.31347533]
[1766314588600,0.58568214,88704.0,88694.0,0.31347533]
[1766314589012,0.58568214,88704.0,88703.0,0.00045974]
[1766314589965,0.58568214,88704.0,88694.0,0.31347533]
[1766314591322,0.58568214,88704.0,88695.0,0.01352951]
[1766314591323,0.03951214,88704.0,88695.0,0.01352951]
[1766314591838,0.03951214,88704.0,88694.0,0.31347533]
[1766314592239,0.03951214,88704.0,88691.0,0.54967]
[1766314592450,0.03951214,88704.0,88690.0,0.0002]
[1766314592451,0.26625,88702.0,88694.0,0.04722533]
[1766314592793,0.54617,88701.0,88694.0,0.31347533]
[1766314593090,0.03951214,88704.0,88690.0,0.31367533]
[1766314593091,0.01127459,88695.0,88690.0,0.31367533]
[1766314593272,0.00564,88694.0,88690.0,0.0002]
[1766314593495,0.00564,88693.0,88690.0,0.0002]
[1766314594005,0.54617,88692.0,88680.0,0.62695066]
[1766314594138,0.54617,88692.0,88680.0,0.62730959]
[1766314594342,0.54617,88692.0,88675.0,0.48297]
[1766314594343,0.01352314,88691.0,88676.0,4.26e-06]
[1766314594547,0.01352314,88691.0,88660.0,0.36302544]
[1766314594548,0.49395234,88683.0,88674.0,4.26e-06]
[1766314594768,0.00564,88682.0,88674.0,4.26e-06]
[1766314596869,0.0003587,88691.0,88682.0,0.001099]
[1766314597195,0.04512,88687.0,88682.0,0.001099]
[1766314597697,0.04512,88687.0,88677.0,0.31365937]
[1766314600644,0.04512,88687.0,88678.0,0.45183]
[1766314601028,0.04512,88687.0,88686.0,0.00027596]
[1766314601646,0.05076,88687.0,88686.0,0.00027596]